bitfinex/quotes_ETHUSD_20240907
["timestamp","ask_amount","ask_price","bid_price","bid_amount"]
[1725716442675,1.54690234,2300.8,2300.5,4.34687]
[1725716442676,2.40428688,2300.8,2300.5,4.34687]
[1725716443366,5.89324234,2300.8,2300.3,4.34712]
[1725716443571,3.0,2300.7,2300.3,4.34712]
[1725716443772,1.54690234,2300.6,2300.3,4.34712]
[1725716443978,5.4408,2300.7,2300.3,4.34712]
[1725716444466,5.4408,2300.7,2300.3,8.69428]
[1725716444667,5.4408,2300.7,2300.3,4.34712]
[1725716445035,9.78732,2300.7,2300.3,4.34712]
[1725716445352,9.78732,2300.7,2300.1,4.34747]
[1725716445353,3.71632047,2300.6,2300.1,4.34747]
[1725716445553,3.0,2300.5,2300.1,8.69495]
[1725716445754,3.0,2300.5,2300.1,8.69501]
[1725716446264,3.0,2300.5,2300.1,8.695]
[1725716446781,3.0,2300.5,2300.2,4.34744]
[1725716447233,3.0,2300.5,2300.1,4.34747]
[1725716448567,3.0,2300.5,2300.1,8.695]
[1725716449075,3.0,2300.5,2300.2,4.34742]
[1725716449569,3.0,2300.5,2300.3,8.69448]
[1725716449738,5.4408,2300.7,2300.3,4.34724]
[1725716450138,5.4408,2300.7,2300.3,4.34714]
[1725716450778,5.4408,2300.7,2300.4,0.37266092]
[1725716450948,5.4408,2300.7,2300.4,4.71970092]
[1725716451201,5.4408,2300.7,2300.4,0.37266092]
[1725716451350,6.92761186,2300.7,2300.4,0.37266092]
[1725716451538,2.4408,2300.5,2300.1,4.34747]
[1725716451743,5.4408,2300.5,2300.1,4.34747]
[1725716452248,5.4408,2300.5,2300.1,8.69501]
[1725716452889,3.71632047,2300.4,2299.9,4.34786]
[1725716453090,3.0,2300.3,2299.9,4.34786]
[1725716453377,7.34726,2300.3,2299.9,4.34786]
[1725716453580,3.71632047,2300.0,2299.7,4.3482]
[1725716454377,3.71632047,2300.0,2299.5,4.34863]
[1725716454378,3.71632047,2300.0,2299.6,4.34854]
[1725716454738,2.3652,2299.9,2299.5,4.34863]
[1725716454945,2.3652,2299.9,2299.6,4.34853]
[1725716455146,5.3652,2299.9,2299.5,4.34863]
[1725716455350,9.71329,2299.9,2299.4,4.34886]
[1725716455550,9.71329,2299.9,2299.3,4.349]
[1725716455551,8.06455047,2299.8,2299.3,4.349]
[1725716455787,3.0,2299.7,2299.3,4.349]
[1725716455972,3.0,2299.7,2299.1,4.34938]
[1725716455973,3.71632047,2299.6,2299.2,4.34932]
[1725716456289,3.0,2299.5,2299.2,4.34932]
[1725716456493,3.0,2299.5,2299.1,4.34938]
[1725716456798,6.85201186,2299.5,2299.1,4.34938]
[1725716457307,3.71632047,2299.4,2298.9,4.78513]
[1725716457450,3.0,2299.3,2299.0,4.3497]
[1725716458353,3.0,2299.3,2298.9,4.34973]
[1725716459370,7.34918,2299.3,2298.9,4.34973]
[1725716459583,8.15875676,2299.3,2298.7,4.3501]
[1725716459874,3.71632047,2299.2,2298.8,4.35005]
[1725716460077,5.3652,2299.1,2298.8,4.35005]
[1725716460390,5.3652,2299.1,2298.7,4.3501]
[1725716460575,5.3652,2299.1,2298.7,8.70028]
[1725716460905,3.71632047,2299.0,2298.5,8.70099]
[1725716461053,3.71632047,2299.0,2298.5,4.35047]
[1725716461054,3.71632047,2298.8,2298.5,4.35047]
[1725716461251,3.71632047,2298.8,2298.3,4.35085]
[1725716461449,5.3652,2298.7,2298.3,4.35085]
[1725716461652,5.3652,2298.7,2297.9,4.78714]
[1725716461653,3.71632047,2298.6,2298.2,4.3512]
[1725716461878,3.0,2298.5,2298.2,4.3512]
[1725716462295,3.0,2298.5,2298.3,4.35103]
[1725716462530,5.3652,2298.7,2298.3,4.35103]
[1725716462867,5.3652,2298.7,2298.5,4.35062]
[1725716463308,6.27335205,2298.7,2298.3,8.70189]
[1725716463605,6.27335205,2298.7,2298.4,4.3508]
[1725716463903,5.3652,2298.7,2298.4,4.3508]
[1725716465812,3.0,2298.7,2298.5,4.35052]
[1725716466119,8.06626047,2298.9,2298.2,2.4239]
[1725716466275,3.71632047,2298.7,2298.0,2.8593]
[1725716466625,3.71632047,2298.7,2298.3,4.35086]
[1725716466784,2.3652,2298.6,2298.3,4.35086]
[1725716467131,1.04314605,2298.8,2298.4,4.72968714]
[1725716467132,3.40834605,2298.8,2298.4,4.72968714]
[1725716467275,2.3652,2298.8,2298.4,4.72968714]
[1725716467476,5.3652,2298.8,2298.4,4.72968714]
[1725716468683,3.71632047,2298.7,2298.4,0.37884714]
[1725716469021,3.0,2298.6,2298.4,0.37884714]
[1725716469593,3.0,2298.6,2298.2,4.35114]
[1725716469796,4.77821805,2298.6,2298.5,0.37875821]
[1725716470039,4.77821805,2298.6,2298.1,4.35129]
[1725716470241,4.77821805,2298.6,2298.5,0.37875821]
[1725716470853,4.77821805,2298.6,2298.1,8.70258]
[1725716471143,4.77821805,2298.6,2298.2,4.3512]
[1725716471453,4.77821805,2298.6,2298.3,0.37893608]
[1725716471750,4.77821805,2298.6,2298.2,4.3512]
[1725716471910,4.77821805,2298.6,2298.3,0.37893608]
[1725716472108,0.97837185,2298.5,2298.2,4.3512]
[1725716472308,0.97837185,2298.5,2298.3,0.37893608]
[1725716472549,0.97837185,2298.5,2298.2,4.3512]
[1725716472750,3.0,2298.6,2298.3,0.37893608]
[1725716472945,3.0,2298.6,2298.2,4.3512]
[1725716473246,3.0,2298.6,2298.3,0.37893608]
[1725716473744,3.0,2298.6,2298.4,0.3795869]
[1725716474047,3.0,2298.6,2298.1,8.70259]
[1725716474344,4.34318005,2298.6,2298.1,8.70259]
[1725716474656,4.34318005,2298.6,2298.2,0.37976479]
[1725716474949,4.351,2298.4,2298.2,0.37976479]
[1725716475152,12.41850047,2298.3,2297.8,4.35198]
[1725716475455,3.0,2298.2,2297.9,0.38003168]
[1725716475606,8.89309005,2298.2,2297.9,0.38003168]
[1725716475807,11.15659005,2298.2,2297.7,8.70411]
[1725716476117,11.15659005,2298.2,2298.0,0.3799427]
[1725716476324,11.15659005,2298.2,2297.7,8.70411]
[1725716476525,11.15659005,2298.2,2297.8,0.38012065]
[1725716476747,6.80535005,2298.2,2297.8,4.35197]
[1725716476955,6.80535005,2298.2,2297.9,0.38003168]
[1725716477349,1.21473985,2298.1,2297.9,0.38003168]
[1725716477648,5.2635,2298.2,2297.7,8.7041]
[1725716477811,5.2635,2298.2,2298.0,0.3799427]
[1725716478017,5.2635,2298.2,2297.7,8.70411]
[1725716478018,9.61474,2298.2,2297.7,8.70411]
[1725716478549,3.0,2298.2,2297.8,4.73238485]
[1725716479053,3.0,2298.2,2297.8,4.68238485]
[1725716479220,3.0,2298.2,2297.9,4.35176]
[1725716479652,3.0,2298.2,2297.8,4.68238485]
[1725716479653,3.0,2298.2,2298.0,4.73225677]
[1725716479853,5.2635,2298.4,2298.0,4.73225677]
[1725716480029,6.59655605,2298.4,2298.0,4.73225677]
[1725716480215,6.59655605,2298.4,2298.0,4.73217677]
[1725716480558,7.27,2298.7,2298.3,4.35094]
[1725716480714,7.27,2298.7,2298.2,4.35113]
[1725716480715,4.93413151,2298.7,2298.2,4.35113]
[1725716481047,0.58381151,2298.7,2298.3,4.73130163]
[1725716481271,4.93410151,2298.7,2298.3,0.38035163]
[1725716481553,5.6505662,2298.6,2298.1,4.35125]
[1725716481720,1.3000662,2298.6,2298.2,4.73165057]
[1725716482131,1.3000662,2298.6,2298.3,4.35098]
[1725716482462,3.71632047,2298.8,2298.3,4.35098]
[1725716482463,3.71632047,2298.8,2298.4,0.38006154]
[1725716482654,7.35031,2298.7,2298.4,0.38006154]
[1725716482949,3.0,2298.7,2298.3,4.35104]
[1725716483152,3.0,2298.7,2298.4,0.38002937]
[1725716483153,7.35028,2298.7,2298.4,0.38002937]
[1725716483359,7.35028,2298.7,2298.2,4.35113]
[1725716483659,1.54168105,2298.6,2298.3,0.3801183]
[1725716484152,1.54168105,2298.6,2298.4,0.38002937]
[1725716484348,1.54168105,2298.6,2298.2,4.35113]
[1725716484556,1.54168105,2298.6,2298.3,0.3801183]
[1725716484557,5.89215105,2298.6,2298.3,0.3801183]
[1725716484714,3.0,2298.5,2298.2,4.35113]
[1725716484920,3.0,2298.5,2298.3,0.3801183]
[1725716485256,3.0,2298.5,2298.2,4.35113]
[1725716485453,3.0,2298.5,2298.4,0.38001328]
[1725716485618,6.52434715,2298.5,2298.3,0.38010222]
[1725716485957,6.52434715,2298.5,2298.4,0.38001328]
[1725716486158,6.52434715,2298.5,2298.2,4.35113]
[1725716486324,6.52434715,2298.5,2298.0,4.35159]
[1725716486325,10.87502715,2298.5,2298.0,4.35159]
[1725716486518,0.76363846,2298.4,2298.0,4.35159]
[1725716486823,0.76363846,2298.4,2298.1,0.38029621]
[1725716487650,0.76363846,2298.4,2298.1,4.73161621]
[1725716487821,5.2635,2298.5,2298.1,4.73161621]
[1725716488017,6.8149468,2298.5,2298.2,4.35113]
[1725716488248,4.5514468,2298.5,2298.2,4.35113]
[1725716488446,1.5514468,2298.5,2298.3,0.38012635]
[1725716488774,3.0,2298.4,2298.2,4.35113]
[1725716488958,1.5514468,2298.5,2298.4,0.38003741]
[1725716489159,1.5514468,2298.5,2298.3,4.35103]
[1725716489359,1.5514468,2298.5,2298.4,0.37979605]
[1725716490676,1.5514468,2298.5,2298.2,4.35121]
[1725716490983,1.5514468,2298.5,2298.3,0.37988499]
[1725716491483,1.5514468,2298.5,2298.2,4.35121]
[1725716491651,1.5514468,2298.5,2298.4,0.37979605]
[1725716491835,1.5514468,2298.5,2298.3,0.37988499]
[1725716492039,1.5514468,2298.5,2298.4,0.37979605]
[1725716492739,1.5514468,2298.5,2298.2,4.35121]
[1725716492939,1.5514468,2298.5,2298.3,0.37988499]
[1725716493136,1.5514468,2298.5,2298.3,4.35103]
[1725716493380,1.5514468,2298.5,2298.4,0.37979605]
[1725716493937,1.5514468,2298.5,2298.2,4.35121]
[1725716494141,1.5514468,2298.5,2298.3,0.37988499]
[1725716494341,1.5514468,2298.5,2298.3,4.351]
[1725716494542,1.5514468,2298.5,2298.4,4.73064605]
[1725716494773,1.5514468,2298.5,2298.4,0.37979605]
[1725716495385,2.66796948,2298.5,2298.2,4.3512]
[1725716495539,3.0,2298.4,2298.2,4.3512]
[1725716496087,3.0,2298.4,2298.1,4.35129]
[1725716496706,3.0,2298.4,2298.2,0.37991763]
[1725716496858,1.5514468,2298.3,2298.2,0.37991763]
[1725716497057,1.5514468,2298.3,2298.0,4.35158]
[1725716497258,1.5514468,2298.3,2298.2,0.37991763]
[1725716497558,2.55331775,2298.3,2298.2,0.37991763]
[1725716497760,5.55331775,2298.3,2298.0,4.35158]
[1725716497986,5.55331775,2298.3,2298.1,0.38000659]
[1725716498194,3.0,2298.2,2298.1,0.38000659]
[1725716498961,3.0,2298.2,2298.1,4.73142659]
[1725716499161,4.5514468,2298.3,2298.1,4.73142659]
[1725716499594,4.5514468,2298.3,2298.1,4.73133659]
[1725716499959,3.0,2298.3,2298.2,4.35123]
[1725716500269,3.0,2298.4,2298.3,4.35104]
[1725716500455,1.36487808,2298.8,2298.6,4.35034]
[1725716500659,1.36487808,2298.9,2298.5,2.3554]
[1725716500857,2.2597893,2299.1,2298.9,4.3499]
[1725716500858,1.36487808,2299.1,2298.9,4.3499]
[1725716501107,1.36487808,2299.1,2298.6,0.55]
[1725716501108,3.8096468,2299.0,2298.6,0.37956189]
[1725716501321,3.8096468,2299.0,2298.5,8.70107]
[1725716501322,1.5514468,2298.8,2298.5,8.70107]
[1725716501609,1.5514468,2298.8,2298.5,8.70105]
[1725716501969,11.69494523,2299.0,2298.5,8.70105]
[1725716502171,4.35199696,2298.9,2298.5,8.70105]
[1725716502401,5.71687504,2298.9,2298.5,8.70105]
[1725716502816,5.71687504,2298.9,2298.5,4.3505]
[1725716502817,1.36487808,2298.8,2298.5,4.3505]
[1725716503110,1.36487808,2298.8,2298.3,6.70629]
[1725716503111,1.36487808,2298.8,2298.3,11.05723]
[1725716503316,1.36487808,2298.7,2298.4,4.35071]
[1725716503607,1.36487808,2298.6,2298.4,4.35071]
[1725716504602,1.36487808,2298.5,2298.3,4.35089]
[1725716504918,1.36487808,2298.5,2298.4,4.35085]
[1725716505209,4.36487808,2298.5,2298.4,4.35085]
[1725716505409,4.36487808,2298.5,2298.3,4.35089]
[1725716505609,1.36487255,2298.4,2298.3,4.35089]
[1725716505911,1.36487255,2298.4,2298.0,2.3554]
[1725716505912,1.36487255,2298.4,2298.2,4.35122]
[1725716506100,1.36487255,2298.4,2298.3,6.70644]
[1725716506909,1.36487255,2298.4,2298.3,4.35104]
[1725716507225,1.36487255,2298.4,2298.2,4.35122]
[1725716507591,1.36487255,2298.3,2298.2,4.35122]
[1725716508079,1.36487255,2298.3,2298.1,4.35141]
[1725716508282,1.36487255,2298.2,2298.1,4.35141]
[1725716509020,4.36487255,2298.2,2298.1,4.35141]
[1725716510418,4.36487255,2298.2,2298.0,4.35146]
[1725716510927,4.36487255,2298.2,2298.0,8.70297]
[1725716511087,4.36487255,2298.2,2298.0,4.35146]
[1725716511295,4.36487255,2298.2,2298.0,8.70297]
[1725716511611,4.36487255,2298.2,2298.1,0.37965264]
[1725716511922,4.36487255,2298.2,2298.1,4.73107264]
[1725716512343,7.3423334,2298.2,2298.1,0.37965264]
[1725716512493,10.32869085,2298.2,2298.1,0.37965264]
[1725716512829,10.32869085,2298.2,2297.6,4.35222]
[1725716512830,4.35154,2298.1,2297.6,4.35222]
[1725716513039,1.81989697,2297.7,2297.4,4.3526]
[1725716513191,1.36486284,2297.5,2297.3,4.35291]
[1725716513388,1.36486284,2297.5,2297.2,4.35297]
[1725716513589,6.77886284,2297.5,2297.2,4.35297]
[1725716513788,1.36486284,2297.4,2297.2,4.35297]
[1725716514041,4.87219398,2297.4,2297.0,8.70679]
[1725716514189,1.36486284,2297.3,2297.0,4.35339]
[1725716514388,1.36486284,2297.3,2297.0,8.70678]
[1725716514389,4.36486284,2297.3,2297.0,8.70678]
[1725716514642,4.36486284,2297.3,2297.1,4.3533]
[1725716515290,4.36486284,2297.3,2297.2,4.35312]
[1725716515494,3.0,2297.3,2297.2,4.35312]
[1725716515716,4.36486284,2297.4,2297.2,4.35312]
[1725716516104,4.23389697,2297.3,2296.6,4.35416]
[1725716516390,1.36242871,2297.1,2296.6,8.70826]
[1725716516594,1.36242871,2297.1,2296.6,8.70825]
[1725716516832,1.36242871,2297.1,2296.6,4.3541]
[1725716517005,1.36242871,2297.0,2296.6,4.3541]
[1725716517191,4.36242871,2297.0,2296.6,4.3541]
[1725716517398,3.0,2297.0,2296.6,4.3541]
[1725716517619,5.08456586,2297.0,2296.4,4.35453]
[1725716517827,4.36242871,2296.9,2296.4,8.70905]
[1725716518127,4.36242871,2296.9,2296.5,4.35442]
[1725716518128,4.92588956,2296.9,2296.5,4.35442]
[1725716518494,3.56346085,2296.9,2296.5,4.35442]
[1725716518992,3.56346085,2296.9,2296.6,4.35425]
[1725716518993,3.0,2296.8,2296.6,4.35425]
[1725716519194,0.56346085,2296.9,2296.4,8.70898]
[1725716519447,0.56346085,2296.9,2296.5,4.3544]
[1725716519728,0.35634609,2296.8,2296.4,4.35446]
[1725716519935,3.35634609,2296.8,2296.4,4.35446]
[1725716520302,3.35634609,2296.8,2296.4,8.70899]
[1725716520824,3.35634609,2296.8,2296.4,4.35446]
[1725716521030,0.63338069,2296.7,2296.4,4.35446]
[1725716521435,0.63338069,2296.7,2296.2,4.35493]
[1725716521606,2.414,2296.6,2296.1,4.35515]
[1725716521809,6.76826,2296.6,2296.1,4.35515]
[1725716522136,3.0,2296.5,2296.0,4.35527]
[1725716522342,3.0,2296.5,2296.0,8.71056]
[1725716522569,7.35448,2296.5,2296.0,4.35527]
[1725716522951,3.0,2296.5,2296.1,4.35516]
[1725716523435,3.0,2296.5,2296.0,4.35527]
[1725716523746,6.76903,2296.2,2295.6,4.35601]
[1725716524236,7.35532,2296.1,2295.5,4.35634]
[1725716524446,3.0,2296.1,2295.6,4.35615]
[1725716525000,3.0,2296.1,2295.6,4.35603]
[1725716525195,5.414,2296.2,2295.6,0.435603]
[1725716525436,3.0,2296.3,2296.2,4.35502]
[1725716525745,3.0,2296.3,2296.0,4.35527]
[1725716526043,4.35472,2296.4,2295.9,4.35552]
[1725716526473,3.0,2296.3,2296.0,4.35539]
[1725716526771,4.35465,2296.4,2296.0,0.37320149]
[1725716526972,3.976865,2296.3,2295.9,4.35554]
[1725716527174,3.0,2296.3,2296.0,4.35536]
[1725716527378,5.414,2296.5,2296.1,4.35517]
[1725716527574,5.414,2296.5,2296.2,0.37299908]
[1725716527780,5.414,2296.5,2296.0,4.35529]
[1725716528081,5.414,2296.5,2296.1,0.373064]
[1725716528233,5.766903,2296.4,2296.1,0.373064]
[1725716528434,3.0,2296.3,2296.1,0.373064]
[1725716528736,3.0,2296.3,2295.9,4.35552]
[1725716528929,8.766913,2296.4,2295.8,4.35564]
[1725716529381,4.412263,2296.4,2295.9,4.72871419]
[1725716529686,3.0,2296.4,2296.0,4.35536]
[1725716530166,3.0,2296.4,2296.1,0.37303176]
[1725716530372,3.0,2296.4,2296.1,4.72823176]
[1725716530776,2.414,2296.5,2296.1,4.72823176]
[1725716531663,2.414,2296.5,2296.1,0.37303176]
[1725716531861,0.976826,2296.4,2296.1,0.37303176]
[1725716532047,3.976826,2296.4,2296.1,0.37303176]
[1725716532451,3.976826,2296.4,2295.9,4.35549]
[1725716532654,3.976826,2296.4,2296.2,0.37296683]
[1725716532853,3.976826,2296.4,2295.9,4.35549]
[1725716533182,1.1372129,2296.3,2296.0,4.35537]
[1725716533737,1.1372129,2296.3,2295.9,4.35544]
[1725716534188,1.1372129,2296.3,2296.0,4.35537]
[1725716534595,2.3035,2296.2,2295.9,4.35544]
[1725716534901,6.48071889,2296.2,2295.8,4.35567]
[1725716535052,6.48071889,2296.2,2295.7,4.35585]
[1725716535053,6.48071889,2296.2,2295.7,8.71171]
[1725716535256,10.83573889,2296.2,2295.7,4.35585]
[1725716535452,10.83573889,2296.2,2295.7,8.71172]
[1725716535687,1.08357389,2296.1,2295.7,4.35585]
[1725716536096,4.08357389,2296.1,2295.7,8.71172]
[1725716536296,4.08357389,2296.1,2295.8,4.35572]
[1725716536297,3.0,2296.1,2295.8,4.35572]
[1725716536464,3.0,2296.1,2296.0,4.3554]
[1725716536801,2.3035,2296.4,2296.0,4.3554]
[1725716537100,6.65822,2296.4,2295.9,4.35558]
[1725716537306,2.3035,2296.2,2295.5,4.35621]
[1725716537485,2.3035,2296.2,2295.7,4.35595]
[1725716537486,0.65356569,2296.1,2295.7,4.35595]
[1725716538001,2.3035,2296.0,2295.6,4.35613]
[1725716538295,2.3035,2296.0,2295.6,4.35603]
[1725716538296,5.3035,2296.0,2295.6,4.35603]
[1725716539070,14.01443,2296.0,2295.5,4.35622]
[1725716539275,14.01443,2296.0,2295.3,4.3566]
[1725716539276,5.82238957,2295.9,2295.3,8.71314]
[1725716539488,3.0,2295.8,2295.3,4.35654]
[1725716540011,3.0,2295.8,2295.1,4.357]
[1725716540012,4.35599,2295.7,2295.1,4.357]
[1725716540188,4.35599,2295.7,2294.9,4.35734]
[1725716540189,5.3035,2295.6,2294.9,4.35734]
[1725716540358,5.3035,2295.6,2294.7,2.3361]
[1725716540359,6.66014,2295.4,2294.7,4.35772]
[1725716540562,3.0,2295.3,2294.8,4.35766]
[1725716540898,3.0,2295.3,2294.7,8.71546]
[1725716541274,3.0,2295.3,2294.7,4.35772]
[1725716541671,3.0,2295.3,2294.8,0.37459402]
[1725716541672,4.35692,2295.2,2294.8,0.37459402]
[1725716541919,6.66084,2295.0,2294.8,0.37459402]
[1725716542095,2.3035,2294.8,2294.1,4.35893]
[1725716542305,2.3035,2294.8,2294.1,4.35888]
[1725716542614,5.3035,2294.8,2294.2,0.37512945]
[1725716542960,5.3035,2294.8,2294.2,4.73391945]
[1725716543608,1.401871,2294.7,2294.2,0.37512945]
[1725716543900,2.3035,2294.5,2294.2,0.37512945]
[1725716544105,5.3035,2294.5,2294.2,0.37512945]
[1725716544264,9.66192,2294.5,2293.9,4.35933]
[1725716544756,9.66192,2294.5,2294.0,0.37601787]
[1725716544955,1.401998,2294.4,2294.0,0.37601787]
[1725716545214,3.0,2294.4,2294.0,0.37601787]
[1725716545613,2.3035,2294.5,2294.0,0.37601787]
[1725716546513,6.66177,2294.5,2294.0,0.37601787]
[1725716546759,7.35856,2294.4,2294.0,0.37601787]
[1725716547059,3.0,2294.3,2293.7,4.35964]
[1725716547351,4.35888,2294.2,2294.1,0.36873527]
[1725716547548,4.35888,2294.2,2293.7,4.35975]
[1725716547549,3.0,2294.2,2293.7,4.35975]
[1725716547754,3.0,2294.2,2294.1,0.37042954]
[1725716547967,4.1324846,2294.2,2293.5,4.35999]
[1725716548117,3.0,2294.1,2293.5,4.35999]
[1725716548322,4.35962,2293.8,2293.6,0.36887599]
[1725716548560,11.08189715,2293.7,2293.6,0.36887599]
[1725716548737,11.08189715,2293.7,2292.9,4.36121]
[1725716548738,4.36028,2293.5,2292.9,4.36121]
[1725716548953,2.3035,2293.6,2293.2,4.36071]
[1725716548954,3.72213715,2293.3,2293.2,4.36071]
[1725716549282,6.72213715,2293.3,2293.2,0.35929]
[1725716549733,6.72213715,2293.3,2292.8,4.36135]
[1725716549933,3.72213715,2293.0,2292.8,4.36135]
[1725716550475,3.0,2292.9,2292.8,4.36135]
[1725716552031,3.0,2293.1,2292.8,4.36135]
[1725716552233,3.72213715,2293.0,2292.8,4.36135]
[1725716552454,3.72213715,2293.0,2292.8,4.36147]
[1725716552655,3.0,2292.9,2292.7,4.36153]
[1725716552882,3.72213715,2292.8,2292.7,4.36153]
[1725716553069,6.72213715,2292.8,2292.7,4.36153]
[1725716553679,6.72213715,2292.8,2292.6,4.36185]
[1725716553860,3.0,2292.7,2292.6,4.36185]
[1725716554259,3.0,2292.7,2292.6,4.67125431]
[1725716554458,3.72213715,2293.2,2292.6,1.21271974]
[1725716554660,2.3035,2293.4,2292.6,1.21271974]
[1725716554661,3.72213715,2293.4,2293.1,4.36086]
[1725716554889,3.72213715,2293.2,2293.1,4.3609]
[1725716555097,3.72213715,2293.2,2293.0,4.36103]
[1725716555305,3.72213715,2293.2,2292.9,4.36115]
[1725716555306,3.72213715,2293.2,2293.1,4.3609]
[1725716555777,3.72213715,2293.2,2292.9,4.36113]
[1725716555977,3.0,2293.1,2292.9,4.36113]
[1725716556581,3.0,2293.1,2293.0,4.67104986]
[1725716556912,3.0,2293.1,2293.0,0.30995986]
[1725716557201,3.0,2293.1,2293.0,4.67104986]
[1725716557376,3.0,2293.3,2293.1,4.36087]
[1725716557584,3.0,2293.3,2293.0,0.30995986]
[1725716557585,3.72213715,2293.2,2293.0,0.30995986]
[1725716557790,3.0,2293.1,2292.9,4.36111]
[1725716558383,3.0,2293.1,2293.0,8.72218]
[1725716558594,3.72213715,2293.1,2293.0,4.36109]
[1725716558890,6.72213715,2293.1,2293.0,4.36109]
[1725716559089,6.72213715,2293.1,2292.9,4.36128]
[1725716559090,6.72213715,2293.1,2292.9,4.36116]
[1725716559304,3.0,2293.0,2292.9,4.36116]
[1725716559788,3.0,2293.0,2292.8,4.36146]
[1725716559789,3.72213715,2293.7,2293.4,4.36015]
[1725716559994,3.72213715,2293.7,2293.5,4.36005]
[1725716560167,3.72213715,2293.7,2293.4,4.36015]
[1725716560168,3.72213715,2293.7,2293.6,4.35995]
[1725716560386,3.72213715,2293.7,2293.2,4.36057]
[1725716560591,2.4289,2293.3,2293.0,4.36093]
[1725716560892,3.72213715,2293.5,2293.3,4.36052]
[1725716561089,3.72213715,2293.5,2293.1,4.36077]
[1725716561288,3.72213715,2293.5,2293.1,8.72156]
[1725716561589,3.0,2293.4,2293.2,4.3607]
[1725716561820,3.0,2293.4,2293.3,8.72104]
[1725716562339,3.0,2293.4,2293.3,4.36052]
[1725716562709,3.0,2293.4,2293.3,11.985661]
[1725716563243,3.0,2293.7,2293.3,5.232641]
[1725716563401,3.0,2293.7,2293.3,4.3604]
[1725716563709,2.88401037,2294.0,2293.3,4.3604]
[1725716563710,3.72213715,2293.8,2293.3,4.3604]
[1725716563915,3.72213715,2293.8,2293.1,4.36082]
[1725716563916,3.72213715,2293.5,2293.1,4.36082]
[1725716564122,3.72213715,2293.2,2292.9,16.10236]
[1725716564309,3.72213715,2293.2,2292.7,2.3925]
[1725716564310,3.72213715,2293.2,2293.1,4.3609]
[1725716564626,6.72213715,2293.2,2293.1,4.3609]
[1725716564837,6.72213715,2293.2,2293.0,4.36108]
[1725716564838,6.72213715,2293.2,2292.7,2.3925]
[1725716565135,3.0,2293.1,2292.7,4.36156]
[1725716565345,3.0,2293.1,2292.9,4.36125]
[1725716566101,3.0,2293.1,2293.0,4.36109]
[1725716566337,3.0,2293.1,2292.9,8.7224]
[1725716566552,3.0,2293.1,2293.0,4.36109]
[1725716566704,3.0,2293.1,2292.9,4.36115]
[1725716567036,3.0,2293.1,2293.0,4.36109]
[1725716567552,3.0,2293.1,2293.0,8.72218]
[1725716567878,3.0,2293.4,2293.1,4.36082]
[1725716568729,3.0,2293.4,2293.2,4.36069]
[1725716569276,3.91510372,2293.4,2292.9,4.36127]
[1725716569449,3.72213715,2293.2,2292.9,4.36127]
[1725716569649,3.0,2293.1,2292.9,4.36127]
[1725716570176,3.72213715,2293.7,2293.5,4.36012]
[1725716570593,3.72213715,2293.7,2293.5,8.72016]
[1725716570778,3.72213715,2293.7,2293.3,8.72076]
[1725716570957,3.72213715,2293.7,2293.4,4.36029]
[1725716571156,3.72213715,2293.7,2293.3,4.36036]
[1725716571453,3.72213715,2293.7,2293.5,4.36014]
[1725716571655,3.0,2293.6,2293.5,4.36014]
[1725716572760,2.95,2293.6,2293.5,4.36014]
[1725716572963,2.95,2293.6,2293.5,11.03208]
[1725716573166,10.99213715,2294.1,2293.9,4.35935]
[1725716574390,18.62413715,2295.1,2294.6,8.71597]
[1725716574597,4.17736361,2295.3,2295.0,4.35729]
[1725716574901,3.72213715,2295.5,2295.0,4.35718]
[1725716575208,3.72213715,2295.1,2294.6,4.35805]
[1725716575394,3.72213715,2294.8,2294.6,4.35805]
[1725716575555,3.72213715,2294.8,2294.6,8.716]
[1725716575768,3.72213715,2294.8,2294.6,4.35795]
[1725716576091,2.452,2295.1,2294.7,4.35784]
[1725716576255,4.97984646,2295.2,2294.7,4.35784]
[1725716576455,10.57233316,2295.2,2294.6,4.35792]
[1725716576655,4.35721,2295.1,2294.4,8.71666]
[1725716576852,4.35721,2295.1,2294.4,4.35827]
[1725716577058,3.0,2295.0,2294.6,4.35804]
[1725716577305,3.0,2295.0,2294.4,8.71653]
[1725716577597,3.0,2295.0,2294.4,8.71659]
[1725716577886,9.15029432,2295.0,2294.4,4.35826]
[1725716578479,9.15029432,2295.0,2294.4,4.35346]
[1725716578798,4.79298432,2295.0,2294.5,4.35823]
[1725716578956,3.0,2295.0,2294.6,4.35805]
[1725716579158,3.0,2295.1,2294.8,4.35447]
[1725716579363,3.0,2295.1,2294.8,4.35207]
[1725716579665,3.0,2295.1,2294.6,4.35805]
[1725716579666,3.0,2295.1,2294.6,4.35788]
[1725716579973,3.0,2295.1,2294.6,8.71582]
[1725716580174,4.66936565,2295.1,2294.6,8.71022]
[1725716580503,9.02650565,2295.1,2294.6,4.35228]
[1725716580711,4.66936565,2295.1,2294.7,4.35784]
[1725716581189,4.66936565,2295.1,2294.6,4.35228]
[1725716581360,4.66936565,2295.1,2294.6,8.7102]
[1725716581569,1.40061321,2295.0,2294.6,4.35228]
[1725716582298,1.40061321,2295.0,2294.4,4.35831]
[1725716582509,4.35758,2294.9,2294.4,4.35831]
[1725716582663,3.0,2294.8,2294.4,4.35831]
[1725716583065,3.0,2294.8,2294.5,4.35822]
[1725716583370,5.75804321,2295.0,2294.4,8.71664]
[1725716583371,3.0,2294.9,2294.4,8.71664]
[1725716583580,3.87580432,2294.9,2294.4,8.71664]
[1725716584172,3.87580432,2294.9,2294.4,4.35831]
[1725716584407,4.35824,2294.5,2294.0,4.35906]
[1725716584715,11.30765078,2294.9,2293.7,2.3118]
[1725716584716,4.97984646,2294.3,2293.7,2.3118]
[1725716585064,3.0,2294.2,2293.8,0.08717961]
[1725716585307,3.0,2294.2,2293.7,2.3118]